fUST/lending_fUST_20241203
["ID","MTS","AMOUNT","RATE_DAILY","PERIOD"]
[343967815,1733160649107,-150.17,0.00030479,2]
[343967816,1733160649117,-222.73805917,0.00030484,2]
[343967817,1733160649127,-65102.07073339,0.00030484,2]
[343967818,1733160649138,-931096.96390666,0.00030485,10]
[343967819,1733160649300,-962.99056558,0.00020377,2]
[343967820,1733160649310,-500.0,0.00023927,2]
[343967821,1733160649321,-500.0,0.00027671,7]
[343967822,1733160649332,-216.35,0.00027945,7]
[343967823,1733160649342,-41254.92929295,0.00030485,10]
[343967824,1733160649371,-580.60293112,0.00027397,7]
[343967825,1733160649380,-202.839247,0.00028776,2]
[343967826,1733160649390,-962.99056558,0.00030485,7]
[343967827,1733160649400,-962.99056558,0.00030485,7]
[343967828,1733160649410,-381.51233684,0.00030485,10]
[343967829,1733160649422,-302.50002,0.00030485,10]
[343967830,1733160649477,-190.90076462,0.00030215,2]
[343967831,1733160649489,-11.93848238,0.00030215,2]
[343967832,1733160649499,-23511.70068514,0.00030485,10]
[343967833,1733160649511,-11289.0331985,0.00030485,10]
[343967834,1733160649524,-16300.439082,0.00030485,10]
[343967843,1733160964164,658.0,0.0002,2]
[343967844,1733160964521,657.0,0.0002,2]
[343967845,1733160966086,657.0,0.0002,2]
[343967846,1733160966431,657.0,0.0002,2]
[343967848,1733160970096,1169.27083333,0.0002,2]
[343967849,1733161053224,394.83412,0.00013973,2]
[343967852,1733161295318,1169.27083333,0.0002,2]
[343967855,1733161621875,1169.27083333,0.0002,2]
[343967856,1733161667567,375.092414,0.00013973,2]
[343967873,1733161834320,-1169.27083333,0.00020213,2]
[343967874,1733161834329,-231.8512449,0.0002031,2]
[343967875,1733161834341,-412.99997,0.0002031,2]
[343967894,1733161837879,-637.0395533,0.0002031,2]
[343967896,1733161837889,-250.0,0.0002036,2]
[343967898,1733161837898,-375.092414,0.00020447,2]
[343967900,1733161837907,-343.366218,0.00020555,2]
[343967902,1733161837917,-300.0,0.000211,2]
[343967904,1733161837927,-103.03114252,0.000211,2]
[343967907,1733161837938,-196.96885748,0.000211,2]
[343967909,1733161837948,-24900.0,0.00021101,2]
[343967911,1733161837958,-7725.18845255,0.0002157,2]
[343967913,1733161837967,-2661.850462,0.0002167,2]
[343967915,1733161837976,-257.73541182,0.00021878,2]
[343967917,1733161837986,-195.31907312,0.00021878,2]
[343967919,1733161837996,-420.0,0.0002295,2]
[343967921,1733161838005,-155.97828289,0.0002295,2]
[343967923,1733161838015,-420.0,0.0002321,2]
[343967925,1733161838024,-207.5820217,0.00023562,2]
[343967927,1733161838033,-160.056265,0.00023562,2]
[343967929,1733161838043,-587.0,0.00024962,2]
[343967931,1733161838052,-176.49,0.00024998,8]
[343967933,1733161838062,-587.0,0.00025532,2]
[343967935,1733161838072,-160.06111622,0.00026695,2]
[343967937,1733161838083,-375.092414,0.00026921,2]
[343967939,1733161838100,-162.0,0.00027,2]
[343967941,1733161838125,-823.0,0.00027151,2]
[343967943,1733161838135,-334.28789956,0.00027297,2]
[343967946,1733161838144,-228.42960315,0.00027396,2]
[343967948,1733161838153,-500.0,0.00027396,2]
[343967952,1733161838163,-500.0,0.00027396,2]
[343967954,1733161838192,-500.0,0.00027396,2]
[343967956,1733161838201,-500.0,0.00027396,2]
[343967958,1733161838210,-500.0,0.00027396,2]
[343967960,1733161838219,-473.93936328,0.00027396,2]
[343967962,1733161838228,-500.0,0.00027396,2]
[343967964,1733161838238,-500.0,0.00027396,2]
[343967966,1733161838247,-500.0,0.00027396,2]
[343967968,1733161838257,-500.0,0.00027396,2]
[343967969,1733161838266,-500.0,0.00027396,2]
[343967971,1733161838276,-500.0,0.00027396,2]
[343967973,1733161838285,-500.0,0.00027396,2]
[343967975,1733161838294,-500.0,0.00027396,2]
[343967977,1733161838304,-500.0,0.00027396,2]
[343967978,1733161838313,-500.0,0.00027396,2]
[343967980,1733161838322,-500.0,0.00027396,2]
[343967982,1733161838332,-500.0,0.00027396,2]
[343967984,1733161838342,-500.0,0.00027396,2]
[343967985,1733161838351,-500.0,0.00027396,2]
[343967986,1733161838360,-500.0,0.00027396,2]
[343967987,1733161838370,-500.0,0.00027396,2]
[343967988,1733161838379,-500.0,0.00027396,2]
[343967989,1733161838388,-500.0,0.00027396,2]
[343967990,1733161838397,-500.0,0.00027396,2]
[343967991,1733161838407,-289.54007743,0.00027396,2]
[343967992,1733161838416,-500.0,0.00027396,2]
[343967993,1733161838425,-500.0,0.00027396,2]
[343967994,1733161838435,-500.0,0.00027396,2]
[343967995,1733161838444,-461.09330548,0.00027396,2]
[343967996,1733161838454,-500.0,0.00027396,2]
[343967997,1733161838463,-500.0,0.00027396,2]
[343967998,1733161838473,-500.0,0.00027396,2]
[343967999,1733161838483,-500.0,0.00027396,2]
[343968000,1733161838493,-500.0,0.00027396,2]
[343968001,1733161838503,-500.0,0.00027396,2]
[343968002,1733161838513,-500.0,0.00027396,2]
[343968003,1733161838523,-500.0,0.00027396,2]
[343968004,1733161838532,-500.0,0.00027396,2]
[343968005,1733161838542,-500.0,0.00027396,2]
[343968006,1733161838551,-500.0,0.00027396,2]
[343968007,1733161838561,-500.0,0.00027396,2]
[343968008,1733161838570,-555.20459903,0.00027396,2]
[343968009,1733161838579,-500.0,0.00027396,2]
[343968010,1733161838589,-500.0,0.00027396,2]
[343968011,1733161838598,-500.0,0.00027396,2]
[343968012,1733161838607,-500.0,0.00027396,2]
[343968013,1733161838616,-500.0,0.00027396,2]
[343968014,1733161838625,-500.0,0.00027396,2]
[343968015,1733161838634,-500.0,0.00027396,2]
[343968016,1733161838643,-500.0,0.00027396,2]
[343968017,1733161838652,-500.0,0.00027396,2]
[343968018,1733161838661,-500.0,0.00027396,2]
[343968019,1733161838671,-500.0,0.00027396,2]
[343968020,1733161838680,-500.0,0.00027396,2]
[343968021,1733161838689,-500.0,0.00027396,2]
[343968022,1733161838699,-500.0,0.00027396,2]
[343968023,1733161838708,-500.0,0.00027396,2]
[343968024,1733161838717,-500.0,0.00027396,2]
[343968025,1733161838727,-500.0,0.00027396,2]
[343968026,1733161838736,-500.0,0.00027396,2]
[343968027,1733161838745,-500.0,0.00027396,2]
[343968028,1733161838754,-500.0,0.00027396,2]
[343968029,1733161838763,-500.0,0.00027396,2]
[343968030,1733161838772,-500.0,0.00027396,2]
[343968031,1733161838781,-500.0,0.00027396,2]
[343968032,1733161838790,-500.0,0.00027396,2]
[343968033,1733161838799,-500.0,0.00027396,2]
[343968034,1733161838809,-500.0,0.00027396,2]
[343968035,1733161838818,-500.0,0.00027396,2]
[343968036,1733161838827,-500.0,0.00027396,2]
[343968037,1733161838836,-500.0,0.00027396,2]
[343968038,1733161838846,-500.0,0.00027396,2]
[343968039,1733161838856,-500.0,0.00027396,2]
[343968040,1733161838866,-500.0,0.00027396,2]
[343968041,1733161838876,-500.0,0.00027396,2]
[343968042,1733161838885,-500.0,0.00027396,2]
[343968043,1733161838895,-500.0,0.00027396,2]
[343968044,1733161838904,-500.0,0.00027396,2]
[343968045,1733161838914,-500.0,0.00027396,2]
[343968046,1733161838923,-200.0,0.00027396,2]
[343968047,1733161838933,-500.0,0.00027397,7]
[343968048,1733161838942,-500.0,0.00027397,7]
[343968049,1733161838951,-500.0,0.00027397,7]
[343968050,1733161838963,-500.0,0.00027397,7]
[343968051,1733161838972,-500.0,0.00027397,7]
[343968052,1733161838982,-500.0,0.00027397,7]
[343968053,1733161838991,-500.0,0.00027397,7]
[343968054,1733161839001,-500.0,0.00027397,7]
[343968055,1733161839010,-500.0,0.00027397,2]
[343968056,1733161839020,-500.0,0.00027397,7]
[343968057,1733161839029,-500.0,0.00027397,7]
[343968058,1733161839039,-500.0,0.00027397,7]
[343968059,1733161839049,-500.0,0.00027397,7]
[343968060,1733161839060,-500.0,0.00027397,7]
[343968061,1733161839070,-500.0,0.00027397,7]
[343968062,1733161839080,-500.0,0.00027397,7]
[343968063,1733161839090,-384.2495768,0.00027397,7]
[343968064,1733161839101,-168.0,0.00027397,7]
[343968065,1733161839111,-500.0,0.00027397,7]
[343968066,1733161839202,-500.0,0.00027397,7]
[343968067,1733161839215,-500.0,0.00027397,7]
[343968068,1733161839225,-500.0,0.00027397,7]
[343968069,1733161839235,-500.0,0.00027397,7]
[343968070,1733161839244,-500.0,0.00027397,7]
[343968071,1733161839254,-500.0,0.00027397,7]
[343968072,1733161839264,-500.0,0.00027397,7]
[343968073,1733161839274,-500.0,0.00027397,7]
[343968074,1733161839283,-500.0,0.00027397,7]
[343968075,1733161839292,-632.07,0.00027397,7]
[343968076,1733161839301,-500.0,0.00027397,7]
[343968077,1733161839310,-500.0,0.00027397,7]
[343968078,1733161839320,-500.0,0.00027397,7]
[343968079,1733161839330,-506.62220372,0.00027397,7]
[343968080,1733161839340,-500.0,0.00027397,7]
[343968081,1733161839349,-480.96154284,0.00027397,7]
[343968082,1733161839359,-503.88191652,0.00027397,7]
[343968083,1733161839370,-500.0,0.00027397,7]
[343968084,1733161839379,-500.0,0.00027397,7]
[343968085,1733161839388,-500.0,0.00027397,7]
[343968086,1733161839398,-500.0,0.00027397,7]
[343968087,1733161839407,-500.0,0.00027397,7]
[343968088,1733161839417,-500.0,0.00027397,7]
[343968089,1733161839427,-500.0,0.00027397,7]
[343968091,1733161839437,-500.0,0.00027397,7]
[343968093,1733161839446,-500.0,0.00027397,7]
[343968094,1733161839456,-447.56448789,0.00027397,7]
[343968096,1733161839466,-500.0,0.00027397,7]
[343968097,1733161839475,-376.11419139,0.00027397,7]
[343968098,1733161839485,-500.0,0.00027397,7]
[343968099,1733161839495,-537.12476998,0.00027397,7]
[343968100,1733161839504,-1138.37,0.00027397,7]
[343968101,1733161839514,-500.0,0.00027397,7]
[343968102,1733161839525,-500.0,0.00027397,7]
[343968103,1733161839534,-500.0,0.00027397,7]
[343968104,1733161839544,-500.0,0.00027397,7]
[343968105,1733161839554,-500.0,0.00027397,7]
[343968106,1733161839564,-500.0,0.00027397,7]
[343968107,1733161839573,-1169.27083333,0.00027397,7]
[343968108,1733161839583,-1169.27083333,0.00027397,7]
[343968109,1733161839592,-1169.27083333,0.00027397,7]
[343968110,1733161839602,-648.19145528,0.00027397,7]
[343968111,1733161839612,-470.75536038,0.00027397,7]
[343968112,1733161839623,-500.0,0.00027397,7]
[343968113,1733161839632,-500.0,0.00027397,7]
[343968114,1733161839642,-500.0,0.00027397,7]
[343968115,1733161839652,-500.0,0.00027397,7]
[343968116,1733161839662,-500.0,0.00027397,7]
[343968118,1733161839677,-500.0,0.00027397,7]
[343968119,1733161839687,-500.0,0.00027397,7]
[343968121,1733161839697,-500.0,0.00027397,7]
[343968123,1733161839711,-500.0,0.00027397,7]
[343968124,1733161839721,-500.0,0.00027397,7]
[343968125,1733161839730,-637.04,0.00027397,7]
[343968126,1733161839741,-500.0,0.00027397,7]
[343968127,1733161839750,-500.0,0.00027397,7]
[343968128,1733161839760,-500.0,0.00027397,7]
[343968129,1733161839770,-1351.32,0.00027397,7]
[343968130,1733161839780,-500.0,0.00027397,7]
[343968131,1733161839790,-500.0,0.00027397,7]
[343968132,1733161839800,-500.0,0.00027397,7]
[343968133,1733161839810,-500.0,0.00027397,7]
[343968135,1733161839819,-500.0,0.00027397,7]
[343968136,1733161839829,-500.0,0.00027397,7]
[343968137,1733161839839,-398.30000951,0.00027397,7]
[343968138,1733161839848,-439.51049514,0.00027397,7]
[343968140,1733161839858,-276.92600202,0.00027397,7]
[343968141,1733161839868,-3232.37,0.00027397,7]
[343968142,1733161839878,-500.0,0.00027397,7]
[343968143,1733161839887,-500.0,0.00027397,7]
[343968144,1733161839897,-420.02,0.00027397,7]
[343968145,1733161839907,-151.9169917,0.00027397,7]
[343968146,1733161839917,-220.46442603,0.00027397,2]
[343968147,1733161839927,-500.0,0.00027397,7]
[343968148,1733161839937,-468.36529264,0.00027671,7]
[343968149,1733161839947,-258.20192588,0.00027671,7]
[343968150,1733161839957,-631.82150799,0.00027671,7]
[343968151,1733161839966,-500.0,0.00027671,7]
[343968152,1733161839976,-500.0,0.00027671,7]
[343968153,1733161839986,-530.71135342,0.00027671,7]
[343968154,1733161839996,-500.0,0.00027671,7]
[343968155,1733161840005,-500.0,0.00027671,7]
[343968156,1733161840015,-500.0,0.00027671,7]
[343968157,1733161840024,-168.0,0.00027671,7]
[343968158,1733161840034,-500.0,0.00027671,7]
[343968159,1733161840043,-500.0,0.00027671,7]
[343968160,1733161840053,-500.0,0.00027671,7]
[343968161,1733161840066,-500.0,0.00027671,7]
[343968162,1733161840075,-186.8,0.00027671,7]
[343968163,1733161840085,-500.0,0.00027671,7]
[343968164,1733161840095,-625.39921036,0.00027671,7]
[343968165,1733161840106,-500.0,0.00027671,7]
[343968166,1733161840115,-500.0,0.00027671,7]
[343968167,1733161840125,-181.80242596,0.00027671,7]
[343968168,1733161840134,-500.0,0.00027671,7]
[343968169,1733161840145,-500.0,0.00027671,7]
[343968170,1733161840155,-500.0,0.00027671,7]
[343968171,1733161840165,-500.0,0.00027671,7]
[343968172,1733161840181,-1138.37,0.00027671,7]
[343968173,1733161840191,-500.0,0.00027671,7]
[343968174,1733161840205,-500.0,0.00027671,7]
[343968175,1733161840214,-500.0,0.00027671,7]
[343968176,1733161840224,-500.0,0.00027671,7]
[343968177,1733161840236,-423.34006538,0.00027671,7]
[343968178,1733161840249,-500.0,0.00027671,7]
[343968179,1733161840261,-500.0,0.00027671,7]
[343968180,1733161840273,-374.02868751,0.00027671,7]
[343968181,1733161840284,-500.0,0.00027671,7]
[343968182,1733161840296,-500.0,0.00027671,7]
[343968183,1733161840306,-500.0,0.00027671,7]
[343968184,1733161840316,-1351.32,0.00027671,7]
[343968185,1733161840329,-500.0,0.00027671,7]
[343968186,1733161840340,-500.0,0.00027671,7]
[343968187,1733161840351,-500.0,0.00027671,7]
[343968188,1733161840363,-3232.37,0.00027671,7]
[343968189,1733161840375,-500.0,0.00027671,7]
[343968190,1733161840387,-500.0,0.00027945,7]
[343968191,1733161840399,-500.0,0.00027945,7]
[343968192,1733161840409,-500.0,0.00027945,7]
[343968193,1733161840423,-500.0,0.00027945,7]
[343968194,1733161840441,-168.0,0.00027945,7]
[343968195,1733161840453,-500.0,0.00027945,7]
[343968196,1733161840465,-500.0,0.00027945,7]
[343968197,1733161840477,-500.0,0.00027945,7]
[343968198,1733161840488,-500.0,0.00027945,7]
[343968199,1733161840499,-500.0,0.00027945,7]
[343968200,1733161840510,-500.0,0.00027945,7]
[343968201,1733161840521,-500.0,0.00027945,7]
[343968202,1733161840532,-500.0,0.00027945,7]
[343968203,1733161840544,-500.0,0.00027945,7]
[343968204,1733161840557,-1138.37,0.00027945,7]
[343968205,1733161840571,-500.0,0.00027945,7]
[343968206,1733161840584,-353.45048286,0.00027945,7]
[343968207,1733161840597,-500.0,0.00027945,7]
[343968208,1733161840609,-500.0,0.00027945,7]
[343968209,1733161840619,-500.0,0.00027945,7]
[343968210,1733161840630,-500.0,0.00027945,7]
[343968211,1733161840641,-1351.32,0.00027945,7]
[343968212,1733161840653,-500.0,0.00027945,7]
[343968213,1733161840664,-335.51029485,0.00027945,7]
[343968214,1733161840676,-500.0,0.00027945,7]
[343968215,1733161840687,-3232.37,0.00027945,7]
[343968216,1733161840700,-500.0,0.00027945,7]
[343968217,1733161840711,-155.25305581,0.0002803,2]
[343968218,1733161840723,-334.28789955,0.00028064,2]
[343968219,1733161840735,-823.0,0.00028085,2]
[343968220,1733161840746,-605.45057198,0.00028218,2]
[343968221,1733161840758,-172.75686573,0.00028218,2]
[343968222,1733161840771,-500.0,0.00028219,7]
[343968223,1733161840784,-500.0,0.00028219,7]
[343968224,1733161840797,-500.0,0.00028219,7]
[343968225,1733161840810,-500.0,0.00028219,7]
[343968226,1733161840824,-168.0,0.00028219,7]
[343968227,1733161840834,-414.04063041,0.00028219,7]
[343968228,1733161840845,-500.0,0.00028219,7]
[343968229,1733161840855,-500.0,0.00028219,7]
[343968230,1733161840866,-500.0,0.00028219,7]
[343968231,1733161840877,-500.0,0.00028219,7]
[343968232,1733161840888,-500.0,0.00028219,7]
[343968233,1733161840899,-1138.37,0.00028219,7]
[343968234,1733161840912,-365.03578385,0.00028219,7]
[343968235,1733161840925,-500.0,0.00028219,7]
[343968236,1733161840939,-500.0,0.00028219,7]
[343968237,1733161840950,-1351.32,0.00028219,7]
[343968238,1733161840960,-500.0,0.00028219,7]
[343968239,1733161840972,-500.0,0.00028219,7]
[343968240,1733161840983,-3232.37,0.00028219,7]
[343968241,1733161840994,-500.0,0.00028219,7]
[343968242,1733161841007,-500.0,0.00028493,7]
[343968243,1733161841019,-509.25092684,0.00028493,7]
[343968244,1733161841029,-276.60236962,0.00028493,7]
[343968245,1733161841039,-168.0,0.00028493,7]
[343968246,1733161841050,-500.0,0.00028493,7]
[343968247,1733161841060,-500.0,0.00028493,7]
[343968248,1733161841072,-500.0,0.00028493,7]
[343968249,1733161841087,-417.63783337,0.00028493,7]
[343968250,1733161841098,-1138.37,0.00028493,7]
[343968251,1733161841110,-500.0,0.00028493,7]
[343968252,1733161841122,-500.0,0.00028493,7]
[343968253,1733161841133,-500.0,0.00028493,7]
[343968254,1733161841144,-1351.32,0.00028493,7]
[343968255,1733161841155,-500.0,0.00028493,7]
[343968256,1733161841166,-3232.37,0.00028493,7]
[343968257,1733161841189,-500.0,0.00028493,7]
[343968258,1733161841200,-500.0,0.00028767,7]
[343968259,1733161841210,-500.0,0.00028767,4]
[343968260,1733161841221,-500.0,0.00028767,7]
[343968261,1733161841232,-500.0,0.00028767,7]
[343968262,1733161841243,-500.0,0.00028767,7]
[343968263,1733161841255,-1138.37,0.00028767,7]
[343968264,1733161841265,-324.26997985,0.00028767,7]
[343968265,1733161841276,-500.0,0.00028767,7]
[343968266,1733161841287,-1351.32,0.00028767,7]
[343968267,1733161841298,-500.0,0.00028767,7]
[343968268,1733161841309,-500.0,0.00028767,7]
[343968269,1733161841319,-3232.37,0.00028767,7]
[343968270,1733161841330,-380.72517279,0.00028767,7]
[343968271,1733161841341,-200.503336,0.00028776,2]
[343968272,1733161841351,-186.874715,0.00028776,2]
[343968273,1733161841362,-184.427947,0.00028776,2]
[343968274,1733161841373,-153.45,0.000288,31]
[343968275,1733161841385,-153.45,0.000288,31]
[343968276,1733161841396,-153.45,0.000288,31]
[343968277,1733161841406,-153.45,0.000288,31]
[343968278,1733161841416,-153.45,0.000288,31]
[343968279,1733161841430,-153.45,0.000288,31]
[343968280,1733161841552,-153.45,0.000288,31]
[343968281,1733161841562,-334.28789955,0.0002883,2]
[343968282,1733161841572,-160.0,0.00028861,3]
[343968283,1733161841582,-500.0,0.00029041,7]
[343968284,1733161841591,-500.0,0.00029041,7]
[343968285,1733161841601,-500.0,0.00029041,7]
[343968286,1733161841611,-500.0,0.00029041,7]
[343968287,1733161841626,-1138.37,0.00029041,7]
[343968288,1733161841636,-500.0,0.00029041,7]
[343968289,1733161841646,-1351.32,0.00029041,7]
[343968290,1733161841656,-500.0,0.00029041,7]
[343968291,1733161841665,-500.0,0.00029041,7]
[343968292,1733161841677,-3232.37,0.00029041,7]
[343968293,1733161841687,-153.45,0.000292,31]
[343968294,1733161841697,-153.45,0.000292,31]
[343968295,1733161841707,-153.45,0.000292,31]
[343968296,1733161841716,-153.45,0.000292,31]
[343968297,1733161841727,-153.45,0.000292,31]
[343968298,1733161841736,-153.45,0.000292,31]
[343968299,1733161841746,-153.45,0.000292,31]
[343968300,1733161841755,-153.45,0.000292,31]
[343968301,1733161841765,-153.45,0.000292,31]
[343968302,1733161841775,-153.45,0.000292,31]
[343968303,1733161841784,-153.45,0.000292,31]
[343968304,1733161841794,-153.45,0.000292,31]
[343968305,1733161841805,-153.45,0.000292,31]
[343968306,1733161841814,-153.45,0.000292,31]
[343968307,1733161841823,-186.874715,0.00029255,2]
[343968308,1733161841833,-500.0,0.00029315,7]
[343968309,1733161841843,-500.0,0.00029315,7]
[343968310,1733161841852,-500.0,0.00029315,7]
[343968311,1733161841861,-500.0,0.00029315,7]
[343968312,1733161841871,-1138.37,0.00029315,7]
[343968313,1733161841881,-500.0,0.00029315,7]
[343968315,1733161841891,-500.0,0.00029315,7]
[343968316,1733161841900,-1351.32,0.00029315,7]
[343968317,1733161841910,-619.06288433,0.00029315,7]
[343968318,1733161841919,-3232.37,0.00029315,7]
[343968319,1733161841932,-155.01265279,0.00029431,2]
[343968320,1733161841941,-1152.0,0.00029531,2]
[343968321,1733161841951,-500.0,0.00029589,7]
[343968322,1733161841961,-500.0,0.00029589,7]
[343968323,1733161841971,-500.0,0.00029589,7]
[343968324,1733161841980,-372.19,0.00029589,7]
[343968325,1733161841990,-1138.37,0.00029589,7]
[343968326,1733161841999,-500.0,0.00029589,7]
[343968327,1733161842009,-1351.32,0.00029589,7]
[343968328,1733161842019,-500.0,0.00029589,7]
[343968329,1733161842028,-3232.37,0.00029589,7]
[343968330,1733161842038,-334.28789955,0.00029597,2]
[343968331,1733161842048,-153.45,0.000296,31]
[343968332,1733161842057,-153.45,0.000296,31]
[343968333,1733161842067,-153.45,0.000296,31]
[343968334,1733161842079,-153.45,0.000296,31]
[343968335,1733161842089,-153.45,0.000296,31]
[343968336,1733161842098,-153.45,0.000296,31]
[343968337,1733161842107,-153.45,0.000296,31]
[343968338,1733161842117,-153.45,0.000296,31]
[343968339,1733161842127,-153.45,0.000296,31]
[343968340,1733161842136,-153.45,0.000296,31]
[343968341,1733161842146,-153.45,0.000296,31]
[343968342,1733161842156,-153.45,0.000296,31]
[343968343,1733161842167,-153.45,0.000296,31]
[343968344,1733161842179,-153.45,0.000296,31]
[343968345,1733161842188,-151.0,0.0002962,7]
[343968346,1733161842197,-503.4663938,0.00029651,5]
[343968347,1733161842207,-186.874715,0.00029735,2]
[343968348,1733161842216,-500.0,0.00029751,5]
[343968349,1733161842226,-500.0,0.00029863,7]
[343968350,1733161842235,-500.0,0.00029863,7]
[343968351,1733161842245,-500.0,0.00029863,7]
[343968352,1733161842255,-1138.37,0.00029863,7]
[343968353,1733161842264,-457.83000086,0.00029863,7]
[343968355,1733161842274,-1351.32,0.00029863,7]
[343968356,1733161842283,-500.0,0.00029863,7]
[343968357,1733161842292,-3232.37,0.00029863,7]
[343968358,1733161842302,-160.0,0.0002988,4]
[343968359,1733161842312,-153.45,0.0003,31]
[343968361,1733161842322,-153.45,0.0003,31]
[343968363,1733161842331,-153.45,0.0003,31]
[343968365,1733161842341,-153.45,0.0003,31]
[343968366,1733161842351,-153.45,0.0003,31]
[343968367,1733161842361,-153.45,0.0003,31]
[343968368,1733161842371,-153.45,0.0003,31]
[343968369,1733161842381,-153.45,0.0003,31]
[343968370,1733161842391,-153.45,0.0003,31]
[343968371,1733161842401,-153.45,0.0003,31]
[343968373,1733161842411,-153.45,0.0003,31]
[343968374,1733161842420,-153.45,0.0003,31]
[343968376,1733161842433,-153.45,0.0003,31]
[343968380,1733161842443,-153.45,0.0003,31]
[343968381,1733161842453,-296.0,0.0003,2]
[343968382,1733161842463,-10471.61251642,0.00030107,2]
[343968385,1733161842473,-500.0,0.00030136,7]
[343968386,1733161842482,-305.24132208,0.00030136,7]
[343968387,1733161842492,-500.0,0.00030136,7]
[343968389,1733161842501,-1138.37,0.00030136,7]
[343968390,1733161842511,-1351.32,0.00030136,7]
[343968391,1733161842521,-500.0,0.00030136,7]
[343968392,1733161842531,-3232.37,0.00030136,7]
[343968393,1733161842541,-197.042322,0.00030137,120]
[343968394,1733161842551,-151.0,0.00030163,7]
[343968395,1733161842561,-184.427947,0.00030215,2]
[343968396,1733161842571,-186.874715,0.00030215,2]
[343968397,1733161842581,-1000.0,0.00030248,2]
[343968398,1733161842591,-1000.0,0.00030262,2]
[343968399,1733161842601,-150.0,0.00030264,2]
[343968400,1733161842611,-1000.0,0.00030266,2]
[343968402,1733161842620,-525.90904524,0.00030277,2]
[343968403,1733161842630,-500.0,0.00030299,5]
[343968404,1733161842640,-1000.0,0.00030321,2]
[343968405,1733161842650,-1000.0,0.00030336,2]
[343968407,1733161842659,-10471.61251643,0.00030336,2]
[343968409,1733161842669,-1000.0,0.0003034,2]
[343968410,1733161842681,-1000.0,0.00030342,2]
[343968412,1733161842691,-1000.0,0.00030355,2]
[343968413,1733161842700,-1000.0,0.00030356,2]
[343968414,1733161842710,-2497.6064644,0.00030363,2]
[343968415,1733161842719,-334.28789955,0.00030363,2]
[343968416,1733161842729,-6666.0,0.00030373,2]
[343968417,1733161842739,-666.0,0.00030373,2]
[343968418,1733161842748,-1000.0,0.00030388,2]
[343968419,1733161842757,-2000.0,0.000304,3]
[343968420,1733161842767,-1057.7,0.000304,2]
[343968421,1733161842776,-153.45,0.000304,31]
[343968422,1733161842786,-153.45,0.000304,31]
[343968423,1733161842795,-153.45,0.000304,31]
[343968424,1733161842806,-153.45,0.000304,31]
[343968425,1733161842815,-153.45,0.000304,31]
[343968426,1733161842824,-153.45,0.000304,31]
[343968427,1733161842834,-153.45,0.000304,31]
[343968428,1733161842843,-153.45,0.000304,31]
[343968430,1733161842853,-153.45,0.000304,31]
[343968432,1733161842862,-187.0,0.000304,3]
[343968434,1733161842872,-500.0,0.0003041,7]
[343968436,1733161842882,-154.0,0.0003041,7]